Cogmind - Beta 14 @@@ ROGUE MODE // 2024.08.14 @ 23:08:17 Player: albenzo Result: Destroyed by QV-2W3(R) with Subdweller Laser Performance ------------- Evolutions (0) 0 Regions Visited (2) 400 Robots Destroyed (32) 160 Value Destroyed (665) 665 Prototype IDs (2) 40 Alien Tech Used (0) 0 Bonus (0) 0 TOTAL SCORE: 1265 Bonus ------- None Cogmind --------- Core Integrity 0/250 Matter 150/300 Energy 228/250 System Corruption 1% Temperature Cool (6) Movement Core (550) Ox10 Location -10/Subcaves Parts ------- > --- POWER (1) -------- Ion Engine > --- PROPULSION (2) --- (None) > --- UTILITY (2) ------ Large Storage Unit Improved Terrain Scanner > --- WEAPON (2) ------- Medium Laser Beam Cannon > --- INVENTORY (15) --- Ion Engine Wheel Wheel Medium Storage Unit Large Battery (200) Large Matter Pod (150) Structural Scanner Machine Analyzer Targeting Computer Light Armor Plating Light Armor Plating Recalibrator Light Cannon Subdweller Shrapnel Launcher Peak State ------------ > --- POWER ------------ Ion Engine > --- PROPULSION ------- Light Treads Light Treads > --- UTILITY ---------- Large Storage Unit Improved Terrain Scanner > --- WEAPON ----------- Beam Cannon Beam Cannon > --- INVENTORY -------- Ion Engine Wheel Wheel Medium Storage Unit Large Battery Large Matter Pod Structural Scanner Machine Analyzer Targeting Computer Light Armor Plating Light Armor Plating Recalibrator Medium Laser Light Cannon Subdweller Shrapnel Launcher [Rating: 11] Favorites ----------- Power Ion Engine Engine Ion Engine Propulsion Light Treads Treads Light Treads Leg Aluminum Leg Utility Large Storage Unit Device Heat Sink Storage Large Storage Unit Protection Light Armor Plating Weapon Beam Cannon Energy Gun Medium Laser Energy Cannon Beam Cannon Launcher Subdweller Shrapnel Launcher Build | -11 -10 -10 ------- Run | Yrd Mat Sub Slots Evolved . | . . . Power . | . . . Propulsion . | . . . Utility . | . . . Weapon . | . . . Parts Attached 21 | 1 14 6 Power 4 | . 4 . Engine 4 | . 4 . Core . | . . . Reactor . | . . . Propulsion 5 | . 4 1 Treads 4 | . 3 1 Leg 1 | . 1 . Wheel . | . . . Hover . | . . . Flight . | . . . Utility 7 | 1 4 2 Device 3 | 1 1 1 Storage 3 | . 3 . Processor . | . . . Hackware . | . . . Protection 1 | . . 1 Artifact . | . . . Weapon 5 | . 2 3 Energy Gun 1 | . . 1 Energy Cannon 3 | . 2 1 Ballistic Gun . | . . . Ballistic Cannon . | . . . Launcher 1 | . . 1 Special Weapon . | . . . Impact Weapon . | . . . Slashing Weapon . | . . . Piercing Weapon . | . . . Special Melee Weapon . | . . . Unidentified Prototypes . | . . . Parts Lost 5 | . 2 3 Power . | . . . Propulsion 2 | . . 2 Utility 1 | . 1 . Weapon 2 | . 1 1 Highest Loss Streak 2 | . 1 2 To Critical Strikes . | . . . Average Slot Usage (%) 99 | . 99 99 Engine 14 | . 14 14 Treads 27 | . 26 27 Device 13 | . 14 13 Storage 14 | . 14 14 Energy Gun 11 | . 16 1 Energy Cannon 15 | . 11 26 Peak Build Rating 11 | 7 9 11 Average Rating 8 | 6 7 10 On Entrance 7 | 6 7 9 Naked Turns . | . . . Heaviest Build 34 | 13 32 34 Greatest Support 40 | 20 40 40 Greatest Overweight (x) . | . . . Average Overweight (x) . | . . . Largest Inventory Capacity 15 | 8 15 15 Average Capacity 14 | 8 14 15 Most Carried 15 | 7 15 15 Average Carried 13 | 6 13 14 Final Capacity 15 | 8 15 15 Final Carried 15 | 7 15 14 Class Distribution -------------------- 100% | Mutant Dominant Class ---------------- Mutant | -10/Materials Mutant | -10/Subcaves Resources | -11 -10 -10 ----------- Run | Yrd Mat Sub Matter Collected 640 | 210 385 45 Remotely . | . . . Salvage Created 931 | 54 637 240 Parts 53 | 2 42 9 Haulers Intercepted 2 | . 2 . Recyclers Shooed . | . . . Parts Field Recycled . | . . . Retrieved Matter . | . . . Parts Self-Destructed 7 | . . 7 Prevented . | . . . Kills | -11 -10 -10 ------- Run | Yrd Mat Sub Combat Hostiles Destroyed 24 | . 16 8 Guns 14 | . 14 . Cannons 7 | . 1 6 AOE 2 | . . 2 Classes Destroyed 9 | 1 6 2 Worker 1 | . 1 . Tunneler 3 | 2 1 . Hauler 2 | . 2 . Turret 1 | . . 1 Watcher 1 | . 1 . Swarmer 12 | . 9 3 Grunt 8 | . 6 2 Sentry 1 | . . 1 Subdweller 3 | . 1 2 Best Kill Streak 7 | 1 7 3 Combat Bots Only 6 | . 6 2 Max Kills in Single Turn 2 | 1 2 1 Gunslinging . | . . . Exploded 1 | . . 1 Melee . | . . . Uniques/NPCs Destroyed . | . . . Combat | -11 -10 -10 -------- Run | Yrd Mat Sub Hostile Shots Fired 112 | . 70 42 Missed 30 | . 17 13 Damage Taken 1257 | . 598 659 Core 250 | . 112 138 Absorbed by Shields . | . . . Regen/Repaired (Parts) 115 | . 115 . Core Remaining (%) 100 | 100 . . Volleys Fired 92 | 6 56 30 Largest 2 | 2 2 2 Hottest 120 | 100 120 120 Shots Fired 176 | 12 112 52 Gun 108 | 12 95 1 Cannon 61 | . 17 44 Launcher 7 | . . 7 Special . | . . . Kinetic 7 | . . 7 Thermal 169 | 12 112 45 Explosive . | . . . Electromagnetic . | . . . Robot Hit Streak 14 | 5 14 8 Robot Miss Streak 5 | 1 5 2 Penetration Max . | . . . Secondary Targets 3 | . 3 . Max Gunslinging Chain 1 | . 1 . Shots Hit Robots 114 | 10 76 28 Core Hits 44 | 2 29 13 Critical Kills . | . . . Critical Parts Destroyed . | . . . Critical Strikes 2 | . 2 . Burn 2 | . 2 . Melee Attacks . | . . . Impact . | . . . Slashing . | . . . Piercing . | . . . Sneak Attacks . | . . . Combat Hostiles . | . . . Follow-up Attacks . | . . . Damage Inflicted 1879 | 123 996 760 Guns 1014 | 123 891 . Cannons 544 | . 105 439 Explosions 321 | . . 321 Melee . | . . . Ramming . | . . . Kinetic 321 | . . 321 Thermal 1558 | 123 996 439 Explosive . | . . . Electromagnetic . | . . . Impact . | . . . Slashing . | . . . Piercing . | . . . Highest Corruption 1 | . 1 1 Average Corruption 1 | . 1 1 Corruption Purged . | . . . Corruption Blocked . | . . . Effects 7 | . 2 5 Message Errors 2 | . . 2 Matter Fused 1 | . . 1 Energy Discharges 1 | . 1 . Data Loss (minor) 1 | . . 1 Alerts 2 | . 1 1 Overload Shots . | . . . Overflow Damage 13 | . . 13 Projectiles . | . . . Explosions 13 | . . 13 Melee . | . . . Knockbacks . | . . . Impact . | . . . Kinetic . | . . . Secondary . | . . . Self-Inflicted Damage 84 | . . 84 Shots 2 | . . 2 Rammed . | . . . Targets Rammed . | . . . Kicked . | . . . Crushed . | . . . Highest Temperature 357 | 117 357 27 Average Temperature 104 | 46 116 12 Received Heat Transfer 255 | . 234 21 Effects 2 | . 2 . Interference 2 | . 2 . Siege Activations . | . . . Robots Corrupted . | . . . Combat Hostiles . | . . . Parts Fried . | . . . Impact Corruptions . | . . . Robots Melted 1 | . 1 . Combat Hostiles 1 | . 1 . Parts Melted 9 | 1 7 1 Heat Transferred 4292 | 370 2997 925 Parts Sabotaged . | . . . Parts Stolen . | . . . Parts Stripped . | . . . Power Chain Reactions . | . . . Alert | -11 -10 -10 ------- Run | Yrd Mat Sub Peak Influence 250 | 10 250 . Initial 6 | . 6 . Average 120 | 3 126 . Maximum Alert Level 1 | . 1 . Low Security (%) 88 | 100 88 . Level 1 11 | . 11 . Level 2 . | . . . Level 3 . | . . . Level 4 . | . . . Level 5 . | . . . High Security . | . . . Max Security . | . . . Squads Dispatched 2 | . 2 . Investigation 1 | . 1 . Extermination . | . . . Reinforcement 1 | . 1 . Assault . | . . . Garrison . | . . . Intercept . | . . . Searches Triggered . | . . . Construction Impeded . | . . . Haulers Reinforced . | . . . Active Scanning Responses . | . . . Cargo Convoy Interrupts . | . . . Stealth | -11 -10 -10 --------- Run | Yrd Mat Sub Distress Signals 2 | . 2 . Communications Jammed . | . . . Distress Signals . | . . . Times Spotted 37 | . 23 14 Peak Tracking Total 5 | . 5 4 Tactical Retreats 3 | . 1 2 Traps | -11 -10 -10 ------- Run | Yrd Mat Sub Traps Triggered 4 | . 1 3 Indirectly . | . . . Trap Hack Attempts . | . . . Triggered . | . . . Disarmed . | . . . Reprogrammed . | . . . Reused . | . . . Traps Extracted . | . . . Installed . | . . . Triggered . | . . . Machines | -11 -10 -10 ---------- Run | Yrd Mat Sub Machines Disabled 5 | . 1 4 Max in Single Turn 3 | . 1 3 Machines Repaired . | . . . Machines Dismantled . | . . . Machines Sabotaged . | . . . Overloaded Fab Kills . | . . . Hacking | -11 -10 -10 --------- Run | Yrd Mat Sub Machines Accessed 8 | . 8 . Terminals 6 | . 6 . Fabricators . | . . . Repair Stations 1 | . 1 . Recycling Units 1 | . 1 . Scanalyzers . | . . . Garrison Access . | . . . Total Hacks 20 | . 20 . Successful 14 | . 14 . Failed 6 | . 6 . Catastrophic . | . . . Database Lockouts . | . . . Manual 6 | . 6 . Terminals 15 | . 15 . Fabricators . | . . . Repair Stations 2 | . 2 . Recycling Units 3 | . 3 . Scanalyzers . | . . . Garrison Access . | . . . Terminal Hacks 9 | . 9 . Prototype ID Bank 1 | . 1 . Alert Level 1 | . 1 . Locate Traps 5 | . 5 . Registered Components 1 | . 1 . Zone Layout 1 | . 1 . Fabricator Hacks . | . . . Repair Station Hacks 2 | . 2 . Scan Component 1 | . 1 . Repair 1 | . 1 . Recycling Unit Hacks . | . . . Scanalyzer . | . . . Garrison Access Hacks . | . . . Unauthorized Hacks 3 | . 3 . Terminals 2 | . 2 . Botnet 2 | . 2 . Fabricators . | . . . Repair Stations . | . . . Recycling Units 1 | . 1 . Mask 1 | . 1 . Scanalyzers . | . . . Garrison Access . | . . . Data Cores Recovered . | . . . Used . | . . . Hacking Detections 8 | . 8 . Full Trace Events . | . . . Feedback Events . | . . . Feedback Blocked . | . . . Robot Schematics Acquired . | . . . Robots Built . | . . . Authchips . | . . . Time . | . . . Total Robot Build Rating . | . . . Part Schematics Acquired . | . . . Parts Built . | . . . Authchips . | . . . Time . | . . . Total Part Build Rating . | . . . Parts Repaired 1 | . 1 . Time 26 | . 26 . Parts Recycled . | . . . Recycled Matter . | . . . Retrieved Matter . | . . . Retrieved Components . | . . . Parts Scanalyzed . | . . . Part Schematics Acquired . | . . . Parts Damaged . | . . . Bothacking | -11 -10 -10 ------------ Run | Yrd Mat Sub Used RIF Installer . | . . . Robots Hacked . | . . . Non-combat . | . . . Combat . | . . . Robot Hacks Applied . | . . . Relay Couplers Released . | . . . Fabnet Peak Effective % . | . . . Robots Rewired . | . . . Allies Hacked . | . . . Hacks Repelled . | . . . Allies | -11 -10 -10 -------- Run | Yrd Mat Sub Total Allies . | . . . Largest Group . | . . . Highest-Rated Group . | . . . Highest-Rated Ally . | . . . Total Orders . | . . . Ally Attacks . | . . . Total Damage . | . . . Kills . | . . . Allies Corrupted . | . . . Allies Melted . | . . . Intel | -11 -10 -10 ------- Run | Yrd Mat Sub Robot Analysis Total . | . . . Derelict Logs Recovered . | . . . Drone Launches . | . . . Drone Recoveries . | . . . Exploration | -11 -10 -10 ------------- Run | Yrd Mat Sub Turns Passed 1753 | 64 1156 533 Spaces Moved 808 | 33 536 239 Core . | . . . Treads 750 | . 511 239 Legs 58 | 33 25 . Wheels . | . . . Hover . | . . . Flight . | . . . Fastest Speed 120 | 120 120 160 Average Speed 157 | 120 158 160 Slowest Speed 160 | 120 160 160 Overloaded Moves . | . . . Propulsion Burnouts . | . . . Robots Hopped . | . . . Cave-ins Triggered . | . . . Exploration Rate (%) 41 | 3 96 24 Regions Visited 2 Branch Regions 1 Pre-discovered Areas . | . . . Known Exits Taken . | . . . Unknown Exits Taken 2 | 1 1 . Scrap Searched . | . . . Spaces Dug . | . . . Terrain Destroyed 96 | . . 96 Melee . | . . . Projectile . | . . . AOE 96 | . . 96 Terrain Rammed . | . . . Walls Destroyed . | . . . Machines Disabled . | . . . Actions | -11 -10 -10 --------- Run | Yrd Mat Sub Total 1109 | 45 734 330 Wait 159 | 5 102 52 Move 806 | 32 535 239 Hop . | . . . Pick Up 17 | 1 15 1 Fast Attach 2 | 1 1 . Attach 3 | . 2 1 Detach . | . . . Swap 16 | . 11 5 Drop 14 | . 12 2 Fire 92 | 6 56 30 Melee . | . . . Ram . | . . . Kick . | . . . Crush . | . . . Escape Stasis . | . . . Rewire . | . . . Trap . | . . . Miscellaneous . | . . . Route ------- -11/Scrapyard -10/Materials (discovered 6 exits: [*Mat x3] / [*Min x2] / [*Sub]) -10/Subcaves (discovered 1 exit: [*Rec]) History --------- Turn | Location | Event 1 | -11/Scrapyard | Discovered new exit (range 3) 65 | -11/Scrapyard | Entered Materials 307 | -10/Materials | Build established: Mutant 471 | -10/Materials | Discovered new exit (range 10) 565 | -10/Materials | Derelicts attacked the area 639 | -10/Materials | Discovered new exit (range 8) 903 | -10/Materials | Repaired Lgt. Treads 912 | -10/Materials | Discovered new exit (range 16) 986 | -10/Materials | Discovered new exit (range 11) 1186 | -10/Materials | Discovered new exit (range 15) 1218 | -10/Materials | Discovered new exit (range 3) 1221 | -10/Materials | Entered Subcaves 1419 | -10/Subcaves | Core integrity fell below 50% 1425 | -10/Subcaves | A swath of the cavern ceiling suddenly collapsed 1740 | -10/Subcaves | Core integrity fell below 20% 1747 | -10/Subcaves | Discovered new exit (range 11) 1754 | -10/Subcaves | Destroyed by QV-2W3(R) with Subdweller Laser Last Messages --------------- 01593_ Subatomizers dissect the Sub. Optics. 01653_ Subatomizers dissect the Sub. Monowheel, destroying it. 01663_ S-10 Pest springs to life. 01702_ 53-9FU(R) affixes Scrap Shield Fragment to Scrap Shield. 01716_ Beam Cannon destroyed. 01717_ 53-9FU(R) destroyed. 01725_ Acquired 10 matter. 01739_ Machine disabled. 01739_ Autobeam Turret destroyed. 01746_ AQ-8IQ(R): "NOSTUCKSUB!" 01747_ Lgt. Treads destroyed. 01747_ EXIT=FOUND 01747_ S-10 Pest destroyed. 01747_ Machine disabled. 01747_ AQ-8IQ(R) destroyed. 01748_ Lgt. Treads destroyed. 01749_ Destroyed Autobeam. 01750_ QV-2W3(R): "NOSTUCKSUB!" 01750_ Autobeam Turret destroyed. 01751_ S-10 Pest destroyed. Map ----- +----------------------------------------------------+ | [ # # ##?????????????????????????????????????? | | = #########??????????????????????????????????????? | | *##??????????#???????????????????????????????????? | | #??????????????#?????#?????????????????????????? | | ##???????????????#??????????????????????????????? | | ###???###???????????????????????????????????????? | | ##?## ##??????????????????????????????????????? | | ### ##?#???????????????????????????????????? | | ## ##?#??????????????????????????????????? | | ### #????????????????????????????????????? | | ### #??????#??#??????????????????????????? | | ## #???????????????? ???????????????????? | | ## #????????#????#?? ????????????????? | | ### #???????????????# &% ??????????????? | | ### #??????#??######;; ! ????????????? | | #### ##???#???#??;;;; R ????????????? | | ### #???#??#????; ???????????? | | ### #????#?#????; ???????????? | | ### ##???????????; % ???????????? | | ##??????#???## ?????????????? | | # #??????????# #??????????????? | | ## ## #?????????## #??????????????? | | ?# #?## ##??#######; ;####????????????? | | ## #### #?## ## ; ##???????????? | | ### #??????????????? | | = &% @ #???????????????? | | # ! ; ;##??????????????? | | ## #### ### ## ##???????????????? | | ?## ## #?# #??# #?? ????????????????? | | ??# ### ###?# ""#?? #? ????????????????? | | ? ##?## ##??# ##??? ??? ???????????????? | | ## #???## ??## ??#??#????????#?????????? | | ?# ###???# ???## #?? ??#?????????????????? | | ??# #??????# ???? ##???#???????????????????? | | ???##???????# ??? #????????????????????????? | | ??????????????# ?#? ?? ?????????????????????? | | ??????????????## ??? ???? ???????????????????? | | ??????????? ???? ??? ?????????? ?????????????? | | ???????????????? ? ### ????????????????????????? | | ???????????"???? ?#????#???????????????????????? | | ???????????????? ????#???????????????????????????? | | ?????????????????????????????????????????????????? | | ?????????????????????????????????????????????????? | | ?????????????????????????????????????????????????? | | ?????????????????????????????????????????????????? | | ?????????????????????????????????????????????????? | | ?????????????????????????????????????????????????? | | ?????????????????????????????????????????????????? | | ?????????????????????????????????????????????????? | | ?????????????????????????????????????????????????? | +----------------------------------------------------+ Best States ------------- Heat Dissipation 35 Energy Generation 10 Energy Capacity 250 Matter Stores 300 Matter Capacity 300 Sight Range 16 Terrain Scan Range 16 Terrain Scan Density 10 Armor Coverage 150 Evasion (%) 55 Recoil Reduction 2 Item Schematics ----------------- None Robot Schematics ------------------ None Fabricated ------------ Nothing Alien Tech Used ----------------- None Achievements -------------- None Challenges ------------ None Game ------ Seed FieldFlakTearclaws Manual? 0 Play Time 00:15:04 Cumulative 155.0 hours Start 2024.08.14 @ 22:41:55 End 2024.08.14 @ 23:08:17 Sessions 1 Manual Loads 0 Difficulty Rogue Special Mode None Game No. 123 Rogue 123 Adventurer 0 Explorer 0 Win Type - Total 11 Types 7/0/3/1/0/0/0/0/0 Lore% 68 Gallery% 66 Achievement% 62 Wizard Run 0 Options --------- Layout 0 ASCII 0 Keyboard 1 Movement Vi Keybinds 0 Fullscreen 2 Font 24/Smallcaps Map View 76x50 Zoom Use 0% Tactical HUD 1 Map Filters NONE Filters NONE Steam 1 RUN: d8158ee6-7036-4644-b1aa-242bdf031ee3